fUSD/lending_fUSD_20241223
["ID","MTS","AMOUNT","RATE_DAILY","PERIOD"]
[346388084,1734933052923,-2575.88,0.00019726,2]
[346388085,1734933052932,-3031.08,0.00019726,2]
[346388086,1734933052941,-33550.08,0.00019726,2]
[346388087,1734933052950,-210.08332564,0.00019726,2]
[346388088,1734933052959,-500.0,0.00019726,2]
[346388089,1734933052968,-180.0,0.00019726,2]
[346388090,1734933052977,-500.0,0.00019726,2]
[346388091,1734933052987,-11188.2,0.00019726,2]
[346388092,1734933052996,-904.53,0.00019726,2]
[346388093,1734933053005,-500.0,0.00019726,2]
[346388094,1734933053015,-500.0,0.00019726,2]
[346388095,1734933053024,-509.41610049,0.00019726,2]
[346388096,1734933053033,-2712.33,0.00019726,2]
[346388097,1734933053042,-1961.45,0.00019726,2]
[346388098,1734933053051,-848.01,0.00019726,2]
[346388099,1734933053061,-500.0,0.00019726,2]
[346388100,1734933053070,-1018.63,0.00019726,2]
[346388101,1734933053079,-14884.76,0.00019726,2]
[346388102,1734933053089,-500.0,0.00019726,2]
[346388103,1734933053098,-1450.42,0.00019726,2]
[346388104,1734933053107,-1760.9,0.00019726,2]
[346388105,1734933053116,-500.0,0.00019726,2]
[346388106,1734933053126,-1021.38,0.00019726,2]
[346388107,1734933053135,-1092.51,0.00019726,2]
[346388108,1734933053144,-683.11,0.00019726,2]
[346388109,1734933053153,-8099.19,0.00019726,2]
[346388110,1734933053162,-1109.19,0.00019726,2]
[346388111,1734933053171,-1069.2,0.00019726,2]
[346388112,1734933053180,-1643.07,0.00019726,2]
[346388113,1734933053190,-508.15087298,0.00019726,2]
[346388114,1734933053199,-648.8,0.00019726,2]
[346388115,1734933053208,-630.88,0.00019726,2]
[346388116,1734933053218,-500.0,0.00019726,2]
[346388117,1734933053227,-1207.5,0.00019726,2]
[346388118,1734933053237,-1548.01,0.00019726,2]
[346388119,1734933053246,-574.93,0.00019726,2]
[346388120,1734933053259,-500.0,0.00019726,2]
[346388121,1734933053268,-1420.83,0.00019726,2]
[346388122,1734933053280,-500.0,0.00019726,2]
[346388123,1734933053291,-500.0,0.00019726,2]
[346388124,1734933053302,-500.0,0.00019726,2]
[346388125,1734933053311,-2670.29,0.00019726,2]
[346388126,1734933053322,-2011.18,0.00019726,2]
[346388127,1734933053334,-500.0,0.00019726,2]
[346388128,1734933053344,-500.0,0.00019726,2]
[346388129,1734933053354,-500.0,0.00019726,2]
[346388130,1734933053364,-500.0,0.00019726,2]
[346388131,1734933053373,-1200.41,0.00019726,2]
[346388132,1734933053383,-2403.81,0.00019726,2]
[346388133,1734933053394,-500.0,0.00019726,2]
[346388134,1734933053404,-500.0,0.00019726,2]
[346388135,1734933053413,-3329.62,0.00019726,2]
[346388136,1734933053423,-571.41,0.00019726,2]
[346388137,1734933053432,-246.99811693,0.00019726,2]
[346388138,1734933053442,-2645.06,0.00019726,2]
[346388139,1734933053452,-615.8,0.00019726,2]
[346388140,1734933053461,-500.0,0.00019726,2]
[346388141,1734933053471,-500.0,0.00019726,2]
[346388142,1734933053481,-5396.02,0.00019726,2]
[346388143,1734933053491,-1792.2,0.00019726,2]
[346388144,1734933053500,-785.27,0.00019726,2]
[346388145,1734933053510,-3171.71,0.00019726,2]
[346388146,1734933053519,-500.0,0.00019726,2]
[346388147,1734933053528,-10002.98,0.00019726,2]
[346388148,1734933053538,-18752.7,0.00019726,2]
[346388149,1734933053548,-2143.88,0.00019726,2]
[346388150,1734933053558,-578.05,0.00019726,2]
[346388151,1734933053567,-500.0,0.00019726,2]
[346388152,1734933053576,-2134.2,0.00019726,2]
[346388153,1734933053585,-1755.34,0.00019726,2]
[346388154,1734933053594,-1229.22,0.00019726,2]
[346388155,1734933053603,-500.0,0.00019726,2]
[346388156,1734933053612,-1660.55,0.00019726,2]
[346388157,1734933053621,-500.0,0.00019726,2]
[346388158,1734933053630,-500.0,0.00019726,2]
[346388159,1734933053639,-659.68,0.00019726,2]
[346388160,1734933053648,-5772.02,0.00019726,2]
[346388161,1734933053657,-500.0,0.00019726,2]
[346388162,1734933053666,-3462.73,0.00019726,2]
[346388163,1734933053675,-1829.0,0.00019726,2]
[346388164,1734933053684,-1185.49,0.00019726,2]
[346388165,1734933053693,-1687.67,0.00019726,2]
[346388166,1734933053702,-1023.14,0.00019726,2]
[346388167,1734933053711,-2364.74,0.00019726,2]
[346388168,1734933053720,-1317.39,0.00019726,2]
[346388169,1734933053729,-4593.44,0.00019726,2]
[346388170,1734933053738,-1198.69,0.00019726,2]
[346388171,1734933053748,-4113.41,0.00019726,2]
[346388172,1734933053757,-2254.33,0.00019726,2]
[346388173,1734933053766,-4095.19,0.00019726,2]
[346388174,1734933053775,-787.71,0.00019726,2]
[346388175,1734933053784,-2040.2,0.00019726,2]
[346388176,1734933053793,-500.0,0.00019726,2]
[346388177,1734933053802,-501.66,0.00019726,2]
[346388178,1734933053811,-500.0,0.00019726,2]
[346388179,1734933053820,-963.58,0.00019726,2]
[346388180,1734933053829,-1246.13,0.00019726,2]
[346388181,1734933053838,-1279.08,0.00019726,2]
[346388182,1734933053847,-3509.72,0.00019726,2]
[346388183,1734933053856,-500.0,0.00019726,2]
[346388184,1734933053865,-794.55,0.00019726,2]
[346388185,1734933053874,-500.0,0.00019726,2]
[346388186,1734933053883,-941.74,0.00019726,2]
[346388187,1734933053892,-3058.93,0.00019726,2]
[346388188,1734933053901,-425.50368371,0.00019726,2]
[346388189,1734933053910,-2073.39,0.00019726,2]
[346388190,1734933053919,-1192.47,0.00019726,2]
[346388191,1734933053928,-500.0,0.00019726,2]
[346388192,1734933053937,-4497.3,0.00019726,2]
[346388193,1734933053947,-6900.94,0.00019726,2]
[346388194,1734933053956,-500.0,0.00019726,2]
[346388195,1734933053965,-580.64,0.00019726,2]
[346388196,1734933053974,-504.07,0.00019726,2]
[346388197,1734933053983,-500.0,0.00019726,2]
[346388198,1734933053992,-500.0,0.00019726,2]
[346388199,1734933054001,-500.0,0.00019726,2]
[346388200,1734933054010,-8370.15,0.00019726,2]
[346388201,1734933054019,-500.0,0.00019726,2]
[346388202,1734933054028,-854.92,0.00019726,2]
[346388203,1734933054037,-500.0,0.00019726,2]
[346388204,1734933054045,-500.0,0.00019726,2]
[346388205,1734933054054,-500.0,0.00019726,2]
[346388206,1734933054063,-608.72,0.00019726,2]
[346388207,1734933054072,-500.0,0.00019726,2]
[346388208,1734933054081,-922.99,0.00019726,2]
[346388209,1734933054090,-500.0,0.00019726,2]
[346388210,1734933054099,-847.39,0.00019726,2]
[346388211,1734933054108,-500.0,0.00019726,2]
[346388212,1734933054117,-1971.08,0.00019726,2]
[346388213,1734933054126,-580.68,0.00019726,2]
[346388214,1734933054135,-629.05,0.00019726,2]
[346388215,1734933054144,-826.3,0.00019726,2]
[346388216,1734933054153,-712.96,0.00019726,2]
[346388217,1734933054162,-500.0,0.00019726,2]
[346388218,1734933054171,-150.0,0.0001973,2]
[346388219,1734933054180,-209.0,0.0001975,2]
[346388220,1734933054189,-250.96807178,0.00019773,2]
[346388221,1734933054198,-500.0,0.00019773,2]
[346388222,1734933054207,-307.82869053,0.00019789,2]
[346388223,1734933054215,-1265.0,0.00019798,2]
[346388224,1734933054224,-2011.0,0.00019798,2]
[346388225,1734933054233,-633.0,0.00019798,2]
[346388226,1734933054242,-150.0,0.00019798,2]
[346388227,1734933054252,-565.0,0.00019798,2]
[346388228,1734933054262,-1899.0,0.00019798,2]
[346388229,1734933054271,-924.0,0.00019798,2]
[346388230,1734933054280,-818.0,0.00019798,2]
[346388231,1734933054289,-1256.0,0.00019798,2]
[346388232,1734933054299,-3770.0,0.00019798,2]
[346388233,1734933054307,-3682.0,0.00019798,2]
[346388234,1734933054316,-536.0,0.00019798,2]
[346388235,1734933054326,-250.0,0.00019798,2]
[346388236,1734933054334,-1170.0,0.00019798,2]
[346388237,1734933054343,-177.183,0.00019798,2]
[346388238,1734933054352,-150.0,0.00019798,2]
[346388239,1734933054361,-3887.0,0.00019798,2]
[346388240,1734933054369,-9592.0,0.00019798,2]
[346388241,1734933054378,-151.0,0.000198,2]
[346388242,1734933054387,-151.0,0.000198,2]
[346388243,1734933054396,-166.169043,0.000198,2]
[346388244,1734933054405,-166.169043,0.000198,2]
[346388245,1734933054414,-635.766619,0.000198,2]
[346388246,1734933054423,-635.766619,0.000198,2]
[346388247,1734933054433,-56118.0,0.000198,2]
[346388248,1734933054442,-24403.002357,0.000198,2]
[346388249,1734933054451,-24403.002357,0.000198,2]
[346388250,1734933054460,-24403.002357,0.000198,2]
[346388251,1734933054469,-24403.002357,0.000198,2]
[346388252,1734933054479,-24403.002357,0.000198,2]
[346388253,1734933054488,-24403.002357,0.000198,2]
[346388254,1734933054497,-24403.002357,0.000198,2]
[346388255,1734933054506,-24403.002357,0.000198,2]
[346388256,1734933054516,-24403.002357,0.000198,2]
[346388257,1734933054526,-24403.002357,0.000198,2]
[346388258,1734933054535,-24403.002357,0.000198,2]
[346388259,1734933054544,-24403.002357,0.000198,2]
[346388260,1734933054553,-24403.002357,0.000198,2]
[346388261,1734933054563,-24403.002357,0.000198,2]
[346388262,1734933054572,-24403.002357,0.000198,2]
[346388263,1734933054581,-24403.002357,0.000198,2]
[346388264,1734933054591,-24403.002357,0.000198,2]
[346388265,1734933054599,-24403.002357,0.000198,2]
[346388266,1734933054608,-24403.002357,0.000198,2]
[346388267,1734933054618,-24403.002357,0.000198,2]
[346388268,1734933054627,-24403.002357,0.000198,2]
[346388269,1734933054636,-24403.002357,0.000198,2]
[346388270,1734933054646,-3000.0,0.000198,2]
[346388271,1734933054656,-491.49754242,0.00019809,2]
[346388272,1734933054665,-1000.0,0.00019813,2]
[346388273,1734933054674,-150.0,0.00019828,2]
[346388274,1734933054683,-1500.0,0.00019839,2]
[346388275,1734933054693,-500.0,0.00019839,2]
[346388276,1734933054702,-3633.6,0.00019839,2]
[346388277,1734933054711,-500.0,0.0001984,2]
[346388278,1734933054720,-2000.0,0.0001984,2]
[346388279,1734933054729,-500.0,0.0001984,2]
[346388280,1734933054738,-500.0,0.0001984,2]
[346388281,1734933054747,-500.0,0.0001984,2]
[346388282,1734933054756,-200.0,0.0001984,2]
[346388283,1734933054765,-5800.0,0.00019841,2]
[346388284,1734933054775,-6404.46,0.00019845,2]
[346388285,1734933054784,-263.401,0.00019845,2]
[346388286,1734933054793,-5800.0,0.00019849,2]
[346388287,1734933054802,-153.0,0.00019851,2]
[346388288,1734933054812,-153.0,0.00019852,2]
[346388289,1734933054821,-153.0,0.00019852,2]
[346388290,1734933054830,-153.0,0.00019852,2]
[346388291,1734933054839,-153.0,0.00019852,2]
[346388292,1734933054848,-5800.0,0.00019858,2]
[346388293,1734933054857,-5800.0,0.00019866,2]
[346388294,1734933054866,-5800.0,0.00019875,2]
[346388295,1734933054875,-290.21997052,0.0001988,2]
[346388296,1734933054884,-5800.0,0.00019883,2]
[346388297,1734933054894,-5800.0,0.00019892,2]
[346388298,1734933054903,-3424.2701,0.000199,2]
[346388299,1734933054912,-5800.0,0.000199,2]
[346388300,1734933054924,-1000.0,0.000199,2]
[346388301,1734933054933,-1000.0,0.000199,2]
[346388302,1734933054942,-307.82869053,0.000199,2]
[346388303,1734933054951,-23605.2968988,0.000199,2]
[346388304,1734933054961,-491.49754242,0.000199,2]
[346388305,1734933054970,-158.50444537,0.000199,2]
[346388306,1734933054979,-150.0,0.00019921,2]
[346388307,1734933054988,-1500.0,0.00019941,2]
[346388308,1734933054997,-152.0,0.00019965,4]
[346388309,1734933055006,-641.22154269,0.00019973,2]
[346388310,1734933055015,-500.0,0.00019973,2]
[346388311,1734933055025,-151.0,0.0001998,2]
[346388312,1734933055041,-152.187258,0.0001998,2]
[346388313,1734933055050,-166.169043,0.0001998,2]
[346388314,1734933055060,-166.169043,0.0001998,2]
[346388315,1734933055069,-635.766619,0.0001998,2]
[346388316,1734933055079,-635.766619,0.0001998,2]
[346388317,1734933055090,-152.88245044,0.00019986,2]
[346388318,1734933055100,-1546.6878057,0.00019996,2]
[346388319,1734933055109,-1540.5623095,0.00019996,2]
[346388320,1734933055118,-1534.4368132,0.00019996,2]
[346388321,1734933055127,-1528.311317,0.00019996,2]
[346388322,1734933055136,-1522.1858207,0.00019996,2]
[346388323,1734933055145,-1516.0603244,0.00019996,2]
[346388324,1734933055154,-2052.0524509,0.00019996,2]
[346388325,1734933055163,-2139.4202074,0.00019996,2]
[346388326,1734933055172,-2226.7879639,0.00019996,2]
[346388327,1734933055181,-2314.1557204,0.00019996,2]
[346388328,1734933055190,-2401.5234769,0.00019996,2]
[346388329,1734933055199,-2488.8912334,0.00019996,2]
[346388330,1734933055208,-666.0,0.00019999,2]
[346388331,1734933055217,-300.0,0.00019999,2]
[346388332,1734933055226,-300.0,0.00019999,2]
[346388333,1734933055235,-666.0,0.00019999,2]
[346388334,1734933055244,-151132.04742075,0.00019999,2]
[346388335,1734933055256,-113335.65809054,0.00019999,2]
[346388336,1734933055266,-1000.0,0.00019999,2]
[346388337,1734933055275,-583.88,0.00019999,2]
[346388338,1734933055284,-16544.39486439,0.0002,2]
[346388339,1734933055294,-2765729.42150903,0.0002,3]
[346388340,1734933055303,-20033.49564064,0.0002,3]
[346388341,1734933055312,-3233449.94406685,0.0002,2]
[346388342,1734933055628,-297963.43375054,0.0002,2]
[346388343,1734933055648,-24439.19141542,0.0002,2]
[346388344,1734933055660,-14910.10759383,0.0002,2]
[346388345,1734933055678,-3560.04,0.00019452,2]
[346388346,1734933055687,-55814.68354513,0.0002,2]
[346388347,1734933056219,-1186.35066904,0.00019726,2]
[346388348,1734933056315,-1787.55805162,0.00019726,2]
[346388349,1734933056353,-586.13127934,0.00019726,2]
[346388350,1734933056362,-18.1453249,0.00019798,2]
[346388351,1734933056374,-131.8546751,0.00019798,2]
[346388352,1734933056383,-9718.62213583,0.0002,2]
[346388353,1734933056402,-722.19529931,0.0002,2]
[346388354,1734933056413,-802.66496489,0.0002,2]
[346388355,1734933056424,-632.27300002,0.0002,2]
[346388356,1734933056436,-425.1582348,0.0002,2]
[346388357,1734933056458,-1783.58422935,0.0002,2]
[346388358,1734933056469,-5492.02003773,0.0002,2]
[346388359,1734933056484,-568.5368175,0.0002,2]
[346388360,1734933056499,-956.61757382,0.0002,2]
[346388361,1734933056510,-1383.89329523,0.0002,2]
[346388362,1734933056935,-150.0,0.00018356,2]
[346388363,1734933056944,-150.0,0.00018356,2]
[346388364,1734933056953,-150.0,0.00018356,2]
[346388365,1734933056963,-545.13951383,0.000199,2]
[346388366,1734933056972,-1700.60184902,0.0002,2]
[346388367,1734933056984,-21533.27470492,0.0002,2]
[346388368,1734933056995,-10377.31968114,0.0002,2]
[346388369,1734933057007,-582.1721075,0.0002,2]
[346388370,1734933057018,-740.94270438,0.0002,2]
[346388371,1734933057029,-660.18640899,0.0002,2]
[346388372,1734933057041,-1000.0,0.0002,2]
[346388373,1734933057075,-6971.48568337,0.0002,2]
[346388374,1734933057086,-1469.6840553,0.0002,2]
[346388375,1734933057097,-1132.58449139,0.0002,2]
[346388376,1734933057108,-5242.74940921,0.0002,2]
[346388377,1734933057119,-6855.90067227,0.0002,2]
[346388378,1734933057131,-930.16104195,0.0002,2]
[346388379,1734933057153,-436.35,0.00018356,2]
[346388380,1734933057163,-6899.83371553,0.0002,2]
[346388381,1734933057174,-1580.61261136,0.0002,2]
[346388382,1734933057707,-365.19,0.00018356,2]
[346388383,1734933057716,-98.30596685,0.00019078,2]
[346388384,1734933057727,-133.84306299,0.00019078,2]
[346388385,1734933057736,-191.11528069,0.00019178,2]
[346388386,1734933057748,-11.24471931,0.00019178,2]
[346388387,1734933057757,-1437.83346091,0.0002,2]
[346388388,1734933057771,-8987.6809423,0.0002,2]
[346388389,1734933057783,-3439.57077258,0.0002,2]
[346388390,1734933057793,-38916.72389401,0.0002,2]
[346388391,1734933057804,-517.42094337,0.0002,2]
[346388392,1734933057823,-1303.17693193,0.0002,2]
[346388393,1734933057834,-2049.27708235,0.0002,2]
[346388394,1734933057845,-602.0,0.0002,2]
[346388395,1734933057856,-327.44299814,0.0002,2]
[346388396,1734933057867,-500.0,0.0002,2]
[346388397,1734933057878,-476576.26543964,0.0002,2]
[346388398,1734933058024,-770.83932076,0.0002,2]
[346388399,1734933058035,-1865.90015416,0.0002,2]
[346388400,1734933058046,-4910.85038656,0.0002,2]
[346388401,1734933058057,-7242.9568409,0.0002,2]
[346388402,1734933058068,-2238.27476078,0.0002,2]
[346388403,1734933671788,159.94,0.00014317,2]
[346388404,1734933813302,230.87,0.00010137,2]
[346388405,1734933813503,230.87,0.00016813,2]
[346388406,1734933880068,819.05,0.00015893,2]
[346388433,1734934232388,-891.96,0.00017668,2]
[346388434,1734934232399,-1852.42,0.0001769,2]
[346388435,1734934232408,-178.20566159,0.00017696,2]
[346388436,1734934232418,-1150.31,0.00017719,2]
[346388437,1734934232429,-415.43,0.00017746,2]
[346388438,1734934232439,-300.0,0.00017748,2]
[346388439,1734934232448,-23900.0,0.00017749,2]
[346388440,1734934232458,-1672.811,0.00017796,2]
[346388441,1734934232468,-363.33,0.00017811,2]
[346388442,1734934232478,-250.0,0.00017839,2]
[346388443,1734934232488,-732.19,0.00017874,2]
[346388444,1734934232497,-250.0,0.0001788,2]
[346388445,1734934232507,-2751.0,0.00017897,2]
[346388446,1734934232516,-185.84,0.00017897,2]
[346388447,1734934232525,-11508.63,0.00017897,2]
[346388448,1734934232535,-1000.0,0.00017897,2]
[346388449,1734934232547,-200.0,0.00017897,2]
[346388450,1734934232556,-501.82829359,0.00017897,2]
[346388451,1734934232565,-1500.0,0.00017937,2]
[346388452,1734934232575,-178.20566159,0.00017976,2]
[346388453,1734934232584,-1041.21,0.00017983,2]
[346388454,1734934232594,-150.0,0.00018,2]
[346388455,1734934232603,-150.0,0.00018,2]
[346388456,1734934232614,-150.0,0.00018,2]
[346388457,1734934232623,-698.21,0.00018019,2]
[346388458,1734934232633,-819.05,0.00018157,2]
[346388459,1734934232643,-178.20566159,0.00018256,2]
[346388460,1734934232652,-203.01,0.00018318,2]
[346388461,1734934232662,-200.41,0.00018355,2]
[346388462,1734934232671,-203.69,0.00018355,2]
[346388463,1734934232681,-201.87,0.00018356,2]
[346388464,1734934232690,-201.1,0.00018356,2]
[346388465,1734934232700,-26114.27,0.00018356,2]
[346388466,1734934232710,-169.42,0.0001836,2]
[346388467,1734934232719,-203.41,0.00018398,2]
[346388468,1734934232729,-166.24,0.00018451,2]
[346388469,1734934232739,-19502.69,0.00018467,2]
[346388470,1734934232748,-202.85,0.00018594,2]
[346388471,1734934232757,-201.46,0.00018712,2]
[346388472,1734934232766,-200.72,0.00018712,2]
[346388473,1734934232775,-490.34,0.00018712,2]
[346388474,1734934232785,-200.27,0.000188,2]
[346388475,1734934232800,-201.76,0.000188,2]
[346388476,1734934232810,-2459.76667155,0.00018825,2]
[346388477,1734934232820,-2459.76667156,0.00018825,2]
[346388478,1734934232830,-526.51,0.00018851,2]
[346388479,1734934232840,-500.0,0.00018899,2]
[346388480,1734934232850,-201.32,0.000189,2]
[346388481,1734934232860,-202.98,0.000189,2]
[346388482,1734934232869,-203.45,0.000189,2]
[346388483,1734934232878,-202.99,0.000189,2]
[346388484,1734934232888,-203.11,0.000189,2]
[346388486,1734934232897,-203.66,0.000189,2]
[346388488,1734934232907,-203.08,0.000189,2]
[346388490,1734934232916,-203.87,0.000189,2]
[346388492,1734934232927,-250.0,0.00018918,2]
[346388494,1734934232937,-227.548,0.00019,2]
[346388495,1734934232947,-242.12768651,0.00019078,2]
[346388496,1734934232956,-318.43981852,0.00019078,2]
[346388497,1734934232967,-14197.23549243,0.00019078,2]
[346388500,1734934238320,-3479.06710757,0.00019078,2]
[346388501,1734934238330,-154.8,0.00019095,30]
[346388502,1734934238339,-1000.0,0.000191,2]
[346388503,1734934238348,-1000.0,0.000191,3]
[346388504,1734934238357,-1000.0,0.000191,4]
[346388505,1734934238366,-1000.0,0.000191,4]
[346388506,1734934238376,-1000.0,0.000191,3]
[346388507,1734934238386,-1279.0,0.000191,2]
[346388508,1734934238395,-1000.0,0.000191,2]
[346388509,1734934238404,-488.0,0.000191,3]
[346388510,1734934238413,-1000.0,0.000191,2]
[346388511,1734934238422,-1001.0,0.000191,3]
[346388512,1734934238432,-202.55,0.00019148,2]
[346388513,1734934238441,-242.12768645,0.00019169,2]
[346388514,1734934238451,-318.43981845,0.00019169,2]
[346388515,1734934238460,-200.52,0.00019173,2]
[346388516,1734934238469,-333.122315,0.00019175,3]
[346388517,1734934238478,-333.122315,0.00019175,3]
[346388518,1734934238488,-333.122315,0.00019175,3]
[346388519,1734934238497,-333.122315,0.00019175,3]
[346388520,1734934238506,-333.122315,0.00019175,2]
[346388521,1734934238515,-257.122315,0.00019175,2]
[346388522,1734934238524,-333.122315,0.00019176,2]
[346388523,1734934238534,-333.122315,0.00019176,2]
[346388524,1734934238543,-333.122315,0.00019176,2]
[346388525,1734934238552,-333.122315,0.00019176,2]
[346388526,1734934238562,-333.122315,0.00019176,2]
[346388527,1734934238571,-333.122315,0.00019176,3]
[346388528,1734934238580,-333.122315,0.00019176,3]
[346388529,1734934238589,-333.122315,0.00019176,3]
[346388530,1734934238599,-333.122315,0.00019176,3]
[346388531,1734934238608,-333.122315,0.00019176,3]
[346388532,1734934238618,-174.36599432,0.00019177,2]
[346388533,1734934238627,-151.861872,0.00019178,2]
[346388534,1734934238637,-1664.202005,0.00019178,2]
[346388535,1734934238646,-1443.398894,0.00019178,2]
[346388536,1734934238655,-500.0,0.00019178,2]
[346388537,1734934238664,-500.0,0.00019178,2]
[346388538,1734934238674,-500.0,0.00019178,2]
[346388539,1734934238683,-500.0,0.00019178,2]
[346388540,1734934238692,-500.0,0.00019178,2]
[346388541,1734934238702,-500.0,0.00019178,2]
[346388542,1734934238711,-500.0,0.00019178,2]
[346388543,1734934238720,-500.0,0.00019178,2]
[346388544,1734934238730,-201.60517725,0.00019178,2]
[346388545,1734934238739,-505.14446573,0.00019178,2]
[346388546,1734934238749,-500.0,0.00019178,2]
[346388547,1734934238758,-500.0,0.00019178,2]
[346388548,1734934238767,-500.0,0.00019178,2]
[346388549,1734934238777,-500.0,0.00019178,2]
[346388551,1734934238786,-504.35809336,0.00019178,2]
[346388553,1734934238796,-500.0,0.00019178,2]
[346388554,1734934238806,-500.0,0.00019178,2]
[346388556,1734934238815,-461.82279308,0.00019178,2]
[346388558,1734934238824,-500.0,0.00019178,2]
[346388560,1734934238834,-500.0,0.00019178,2]
[346388562,1734934238844,-429.68864474,0.00019178,2]
[346388564,1734934238854,-500.0,0.00019178,2]
[346388566,1734934238864,-377.40355507,0.00019178,2]
[346388569,1734934238873,-500.0,0.00019178,2]
[346388570,1734934238883,-500.0,0.00019178,2]
[346388572,1734934238892,-549.87,0.00019178,2]
[346388575,1734934238902,-457.27390715,0.00019178,2]
[346388576,1734934238911,-500.0,0.00019178,2]
[346388579,1734934238921,-500.0,0.00019178,2]
[346388580,1734934238933,-500.0,0.00019178,2]
[346388582,1734934238944,-500.0,0.00019178,2]
[346388585,1734934238953,-818.95,0.00019178,2]
[346388586,1734934238963,-500.0,0.00019178,2]
[346388589,1734934238972,-500.0,0.00019178,2]
[346388591,1734934238983,-500.0,0.00019178,2]
[346388593,1734934238992,-500.0,0.00019178,2]
[346388595,1734934239002,-569.895369,0.00019178,2]
[346388596,1734934239013,-533.77605452,0.00019178,2]
[346388598,1734934239022,-550.63,0.00019178,2]
[346388600,1734934239031,-500.0,0.00019178,2]
[346388602,1734934239041,-500.0,0.00019178,2]
[346388605,1734934239052,-664.18,0.00019178,2]
[346388607,1734934239062,-500.0,0.00019178,2]
[346388609,1734934239073,-500.0,0.00019178,2]
[346388610,1734934239082,-504.35835449,0.00019178,2]
[346388613,1734934239092,-500.0,0.00019178,2]
[346388615,1734934239102,-172.86724605,0.00019178,2]
[346388616,1734934239112,-500.0,0.00019178,2]
[346388618,1734934239121,-500.0,0.00019178,2]
[346388621,1734934239131,-510.65824061,0.00019178,2]
[346388623,1734934239140,-726.36,0.00019178,2]
[346388625,1734934239149,-500.0,0.00019178,2]
[346388626,1734934239159,-507.55,0.00019178,2]
[346388649,1734934239357,-232.7,0.00019178,2]
[346388651,1734934239367,-500.0,0.00019178,2]
[346388653,1734934239376,-500.0,0.00019178,2]
[346388655,1734934239386,-500.0,0.00019178,2]
[346388657,1734934239394,-500.0,0.00019178,2]
[346388659,1734934239404,-500.0,0.00019178,2]
[346388660,1734934239413,-500.0,0.00019178,2]
[346388663,1734934239423,-500.0,0.00019178,2]
[346388665,1734934239432,-743.3,0.00019178,2]
[346388667,1734934239442,-500.0,0.00019178,2]
[346388668,1734934239451,-501.18783834,0.00019178,2]
[346388670,1734934239461,-362.43371643,0.00019178,2]
[346388672,1734934239470,-500.0,0.00019178,2]
[346388674,1734934239479,-500.0,0.00019178,2]
[346388676,1734934239488,-500.0,0.00019178,2]
[346388678,1734934239497,-500.0,0.00019178,2]
[346388680,1734934239507,-500.0,0.00019178,2]
[346388682,1734934239516,-500.0,0.00019178,2]
[346388684,1734934239525,-500.0,0.00019178,2]
[346388686,1734934239534,-500.0,0.00019178,2]
[346388688,1734934239543,-500.0,0.00019178,2]
[346388690,1734934239553,-547.02,0.00019178,2]
[346388692,1734934239563,-500.0,0.00019178,2]
[346388695,1734934239573,-276.48614981,0.00019178,2]
[346388697,1734934239582,-500.0,0.00019178,2]
[346388699,1734934239592,-503.13191354,0.00019178,2]
[346388700,1734934239602,-500.0,0.00019178,2]
[346388702,1734934239611,-500.0,0.00019178,2]